fUSD/lending_fUSD_20250905
["ID","MTS","AMOUNT","RATE_DAILY","PERIOD"]
[383697338,1757093455331,-151.0,0.00031076,7]
[383697340,1757093455341,-222.506574,0.00031076,7]
[383697342,1757093455352,-151.0,0.00031076,7]
[383697344,1757093455362,-151.0,0.00031076,7]
[383697346,1757093455372,-262.213734,0.00031076,7]
[383697349,1757093455382,-262.213734,0.00031076,7]
[383697351,1757093455392,-262.213734,0.00031076,7]
[383697353,1757093455402,-262.213734,0.00031076,7]
[383697355,1757093455411,-659.642656,0.00031076,7]
[383697357,1757093455420,-659.642656,0.00031076,7]
[383697359,1757093455429,-659.642656,0.00031076,7]
[383697361,1757093455439,-659.642656,0.00031076,7]
[383697363,1757093455448,-1000.0,0.00031081,7]
[383697365,1757093455458,-35570.0,0.000311,7]
[383697367,1757093455467,-1300.0,0.00031111,7]
[383697369,1757093455476,-500.0,0.00031112,7]
[383697371,1757093455485,-500.0,0.00031129,7]
[383697373,1757093455494,-1000.0,0.00031132,7]
[383697375,1757093455503,-331.901408,0.00031141,7]
[383697377,1757093455513,-331.901408,0.00031141,7]
[383697379,1757093455522,-201.342457,0.00031141,7]
[383697381,1757093455531,-331.901408,0.00031141,7]
[383697383,1757093455540,-201.342457,0.00031141,7]
[383697385,1757093455549,-331.90141,0.00031141,7]
[383697387,1757093455559,-201.342457,0.00031141,7]
[383697389,1757093455568,-201.342449,0.00031141,7]
[383697391,1757093455578,-350.33,0.00031141,2]
[383697393,1757093455587,-500.0,0.00031141,7]
[383697395,1757093455597,-16550.2771,0.00031141,2]
[383697397,1757093455607,-1300.0,0.00031151,7]
[383697399,1757093455616,-500.0,0.00031156,7]
[383697401,1757093455629,-5340.4364691,0.00031161,2]
[383697403,1757093455638,-151.0,0.00031167,7]
[383697405,1757093455648,-151.0,0.00031167,7]
[383697407,1757093455658,-151.0,0.00031167,7]
[383697409,1757093455668,-151.0,0.00031167,7]
[383697411,1757093455677,-151.0,0.00031167,7]
[383697413,1757093455686,-151.0,0.00031167,7]
[383697415,1757093455695,-151.0,0.00031167,7]
[383697417,1757093455704,-151.0,0.00031167,7]
[383697419,1757093455713,-151.0,0.00031167,7]
[383697421,1757093455724,-151.0,0.00031167,7]
[383697423,1757093455734,-232.373111,0.00031167,7]
[383697425,1757093455743,-151.0,0.00031167,7]
[383697427,1757093455752,-151.0,0.00031167,7]
[383697429,1757093455761,-151.0,0.00031167,7]
[383697431,1757093455771,-240.801696,0.00031167,7]
[383697433,1757093455780,-151.0,0.00031167,7]
[383697435,1757093455790,-338.746082,0.00031167,7]
[383697437,1757093455800,-338.746082,0.00031167,7]
[383697439,1757093455810,-338.746082,0.00031167,7]
[383697441,1757093455819,-338.746082,0.00031167,7]
[383697443,1757093455829,-151.0,0.00031167,7]
[383697445,1757093455840,-500.0,0.00031169,7]
[383697447,1757093455849,-500.0,0.0003117,7]
[383697449,1757093455859,-1000.0,0.00031208,7]
[383697451,1757093455869,-3724.39443837,0.0003121,2]
[383697452,1757093455880,-500.0,0.00031216,11]
[383697453,1757093455889,-500.0,0.00031216,11]
[383697454,1757093455898,-150.0,0.00031227,7]
[383697455,1757093455908,-194.583582,0.00031231,7]
[383697456,1757093455917,-194.583582,0.00031231,7]
[383697457,1757093455927,-194.583582,0.00031231,7]
[383697458,1757093455937,-151.0,0.00031231,7]
[383697459,1757093455947,-194.583582,0.00031231,7]
[383697460,1757093455957,-205.434802,0.00031231,7]
[383697461,1757093455970,-151.0,0.00031231,7]
[383697462,1757093455981,-151.0,0.00031231,7]
[383697463,1757093455990,-151.0,0.00031231,7]
[383697464,1757093455999,-151.0,0.00031231,7]
[383697465,1757093456011,-151.0,0.00031231,7]
[383697466,1757093456020,-151.0,0.00031231,2]
[383697467,1757093456031,-151.0,0.00031231,7]
[383697468,1757093456044,-151.0,0.00031231,7]
[383697469,1757093456053,-151.0,0.00031231,7]
[383697471,1757093456063,-151.0,0.00031231,7]
[383697473,1757093456073,-262.213734,0.00031231,7]
[383697475,1757093456082,-262.213734,0.00031231,7]
[383697477,1757093456092,-262.213734,0.00031231,7]
[383697479,1757093456102,-262.213734,0.00031231,7]
[383697481,1757093456112,-659.642656,0.00031231,7]
[383697483,1757093456121,-659.642656,0.00031231,7]
[383697485,1757093456131,-659.642656,0.00031231,7]
[383697487,1757093456141,-659.642656,0.00031231,7]
[383697488,1757093456150,-500.0,0.00031232,120]
[383697490,1757093456159,-150.0,0.00031233,7]
[383697493,1757093456169,-150.0,0.00031233,7]
[383697494,1757093456178,-150.0,0.00031233,7]
[383697496,1757093456188,-150.0,0.00031233,7]
[383697498,1757093456198,-150.0,0.00031233,7]
[383697500,1757093456207,-150.0,0.00031233,7]
[383697502,1757093456216,-150.0,0.00031233,7]
[383697504,1757093456225,-150.0,0.00031233,7]
[383697506,1757093456234,-150.0,0.00031233,7]
[383697508,1757093456243,-150.0,0.00031233,7]
[383697511,1757093456253,-5426.3568017,0.00031241,2]
[383697513,1757093456263,-151.0,0.00031241,7]
[383697514,1757093456272,-151.0,0.00031241,7]
[383697515,1757093456281,-164.819517,0.00031241,7]
[383697516,1757093456291,-151.0,0.00031241,7]
[383697517,1757093456300,-151.0,0.00031241,7]
[383697518,1757093456309,-151.0,0.00031241,7]
[383697519,1757093456317,-151.0,0.00031241,7]
[383697520,1757093456326,-187.817024,0.00031241,7]
[383697521,1757093456335,-151.0,0.00031241,7]
[383697522,1757093456344,-151.0,0.00031241,7]
[383697523,1757093456354,-151.0,0.00031241,7]
[383697525,1757093456363,-151.0,0.00031241,7]
[383697527,1757093456372,-151.0,0.00031241,7]
[383697529,1757093456382,-151.0,0.00031241,7]
[383697531,1757093456392,-151.0,0.00031241,7]
[383697533,1757093456401,-338.746082,0.00031241,7]
[383697535,1757093456410,-338.746082,0.00031241,7]
[383697537,1757093456419,-338.746082,0.00031241,7]
[383697539,1757093456429,-338.746081,0.00031241,7]
[383697541,1757093456438,-151.0,0.00031241,7]
[383697543,1757093456448,-500.0,0.00031241,7]
[383697545,1757093456458,-350.0,0.00031268,5]
[383697547,1757093456468,-500.0,0.00031338,7]
[383697549,1757093456478,-1000.0,0.00031349,7]
[383697551,1757093456487,-1000.0,0.00031363,7]
[383697553,1757093456497,-1000.0,0.00031385,7]
[383697555,1757093456506,-9717.002,0.00031394,2]
[383697557,1757093456516,-500.0,0.00031399,7]
[383697559,1757093456525,-1980.0,0.00031401,2]
[383697561,1757093456535,-151.0,0.00031401,2]
[383697563,1757093456544,-994.59127981,0.00031402,7]
[383697565,1757093456554,-500.0,0.00031402,7]
[383697567,1757093456564,-1000.0,0.00031407,7]
[383697569,1757093456574,-2296.9958704,0.00031414,2]
[383697571,1757093456584,-351.9370192,0.00031414,2]
[383697573,1757093456593,-500.0,0.00031415,7]
[383697574,1757093456603,-194.583582,0.0003142,7]
[383697577,1757093456613,-194.583582,0.0003142,7]
[383697579,1757093456623,-194.583582,0.0003142,7]
[383697580,1757093456633,-194.583582,0.0003142,7]
[383697583,1757093456644,-226.878517,0.0003142,7]
[383697585,1757093456654,-250.302428,0.0003142,7]
[383697587,1757093456663,-151.0,0.0003142,7]
[383697589,1757093456672,-151.0,0.0003142,7]
[383697591,1757093456682,-151.0,0.0003142,7]
[383697593,1757093456691,-151.0,0.0003142,2]
[383697595,1757093456701,-151.0,0.0003142,7]
[383697597,1757093456711,-151.0,0.0003142,7]
[383697599,1757093456721,-151.0,0.0003142,7]
[383697601,1757093456730,-151.0,0.0003142,7]
[383697603,1757093456739,-262.213734,0.0003142,7]
[383697605,1757093456749,-262.213734,0.0003142,7]
[383697607,1757093456759,-262.213734,0.0003142,7]
[383697609,1757093456769,-262.213726,0.0003142,7]
[383697611,1757093456778,-659.642656,0.0003142,7]
[383697613,1757093456787,-659.642656,0.0003142,7]
[383697615,1757093456797,-659.642656,0.0003142,7]
[383697617,1757093456806,-659.642652,0.0003142,7]
[383697619,1757093456815,-151.0,0.00031426,7]
[383697621,1757093456825,-151.0,0.00031426,7]
[383697623,1757093456834,-257.05387,0.00031426,7]
[383697625,1757093456844,-152.093331,0.00031426,7]
[383697627,1757093456853,-19246.74424838,0.0003143,4]
[383697628,1757093456863,-151.956176,0.0003143,7]
[383697630,1757093456873,-151.0,0.0003143,7]
[383697631,1757093456882,-151.0,0.0003143,7]
[383697633,1757093456891,-151.0,0.0003143,7]
[383697635,1757093456900,-153.120082,0.0003143,7]
[383697637,1757093456910,-231.409708,0.0003143,7]
[383697639,1757093456920,-151.0,0.0003143,7]
[383697641,1757093456929,-151.0,0.0003143,7]
[383697644,1757093456939,-151.0,0.0003143,7]
[383697645,1757093456949,-151.0,0.0003143,7]
[383697648,1757093456959,-151.0,0.0003143,7]
[383697650,1757093456972,-151.0,0.0003143,7]
[383697652,1757093456982,-151.0,0.0003143,7]
[383697653,1757093456991,-151.0,0.0003143,7]
[383697655,1757093457000,-151.0,0.0003143,7]
[383697657,1757093457010,-151.0,0.0003143,7]
[383697660,1757093457022,-151.0,0.0003143,7]
[383697661,1757093457032,-167.72,0.00031432,30]
[383697664,1757093457042,-151.0,0.00031436,2]
[383697666,1757093457052,-1000.0,0.00031441,7]
[383697668,1757093457064,-788.21925849,0.00031443,2]
[383697670,1757093457074,-1000.0,0.00031464,7]
[383697672,1757093457084,-500.0,0.00031467,7]
[383697674,1757093457093,-500.0,0.0003148,7]
[383697676,1757093457103,-900.0,0.00031486,7]
[383697678,1757093457113,-150.0,0.0003149,2]
[383697680,1757093457123,-500.0,0.0003149,11]
[383697682,1757093457132,-500.0,0.0003149,11]
[383697684,1757093457142,-500.0,0.00031498,7]
[383697686,1757093457151,-193.52871274,0.000315,2]
[383697688,1757093457160,-500.0,0.00031506,120]
[383697690,1757093457170,-194.583582,0.00031507,7]
[383697692,1757093457180,-194.583582,0.00031507,7]
[383697694,1757093457190,-194.583582,0.00031507,7]
[383697696,1757093457200,-194.583587,0.00031507,7]
[383697698,1757093457209,-195.244072,0.00031507,7]
[383697700,1757093457219,-1300.0,0.0003151,7]
[383697702,1757093457229,-151.0,0.00031517,7]
[383697704,1757093457239,-151.0,0.00031517,7]
[383697706,1757093457248,-184.005378,0.00031517,7]
[383697708,1757093457258,-500.0,0.00031518,7]
[383697710,1757093457268,-500.0,0.00031541,7]
[383697712,1757093457278,-500.0,0.00031543,7]
[383697714,1757093457288,-1000.0,0.00031578,7]
[383697716,1757093457297,-10000.0,0.00031582,2]
[383697718,1757093457307,-930.45,0.000316,30]
[383697720,1757093457317,-1300.0,0.00031635,7]
[383697722,1757093457327,-325.16,0.00031641,2]
[383697724,1757093457338,-500.0,0.00031644,7]
[383697726,1757093457350,-500.0,0.00031662,7]
[383697728,1757093457360,-1000.0,0.00031711,7]
[383697730,1757093457371,-1980.0,0.00031725,2]
[383697732,1757093457382,-1000.0,0.00031754,7]
[383697734,1757093457393,-500.0,0.00031764,11]
[383697736,1757093457402,-500.0,0.00031764,11]
[383697738,1757093457411,-564.53796371,0.0003178,120]
[383697740,1757093457420,-1300.0,0.00031787,7]
[383697742,1757093457429,-3253.59,0.000318,7]
[383697744,1757093457439,-450.0,0.00031816,5]
[383697746,1757093457449,-1000.0,0.00031846,7]
[383697747,1757093457459,-500.0,0.00031862,7]
[383697749,1757093457469,-1000.0,0.00031866,7]
[383697751,1757093457478,-1000.0,0.00031879,7]
[383697753,1757093457487,-1300.0,0.00031891,7]
[383697755,1757093457496,-500.0,0.00031893,7]
[383697757,1757093457506,-35570.0,0.000319,7]
[383697759,1757093457515,-1000.0,0.0003191,7]
[383697761,1757093457524,-1300.0,0.00031931,7]
[383697763,1757093457533,-500.0,0.00031943,7]
[383697765,1757093457542,-272.02728428,0.00031948,2]
[383697767,1757093457552,-151.0,0.0003197,7]
[383697769,1757093457561,-151.0,0.0003197,7]
[383697771,1757093457570,-151.0,0.0003197,7]
[383697773,1757093457580,-151.0,0.0003197,7]
[383697775,1757093457589,-151.0,0.0003197,7]
[383697777,1757093457598,-1000.0,0.00031971,7]
[383697779,1757093457608,-151.0,0.00031984,2]
[383697781,1757093457618,-150.0,0.00032014,7]
[383697782,1757093457632,-150.0,0.00032014,7]
[383697783,1757093457641,-150.0,0.00032014,7]
[383697784,1757093457651,-150.0,0.00032014,7]
[383697785,1757093457660,-150.0,0.00032014,7]
[383697786,1757093457670,-150.0,0.00032014,7]
[383697787,1757093457680,-150.0,0.00032014,7]
[383697788,1757093457689,-150.0,0.00032014,7]
[383697789,1757093457698,-150.0,0.00032014,7]
[383697807,1757093457870,-150.0,0.00032014,7]
[383697809,1757093457884,-150.0,0.00032014,7]
[383697811,1757093457894,-243.775,0.00032014,7]
[383697813,1757093457904,-5340.4364691,0.00032024,2]
[383697815,1757093457914,-151.0,0.00032025,7]
[383697817,1757093457924,-242.385958,0.00032025,7]
[383697819,1757093457935,-151.0,0.00032025,7]
[383697821,1757093457944,-151.0,0.00032025,7]
[383697823,1757093457954,-151.0,0.00032025,7]
[383697825,1757093457966,-151.0,0.00032025,7]
[383697827,1757093457984,-151.0,0.00032025,7]
[383697829,1757093457993,-295.0,0.00032038,11]
[383697831,1757093458002,-397.74245883,0.00032038,11]
[383697833,1757093458012,-1980.0,0.00032048,2]
[383697835,1757093458021,-1000.0,0.00032067,7]
[383697837,1757093458031,-1000.0,0.00032069,7]
[383697839,1757093458042,-1506.7025196,0.00032105,17]
[383697841,1757093458050,-900.0,0.00032131,7]
[383697843,1757093458060,-150.111,0.00032135,2]
[383697845,1757093458071,-199.687,0.00032135,2]
[383697847,1757093458080,-1000.0,0.00032135,7]
[383697849,1757093458090,-500.0,0.00032147,7]
[383697851,1757093458099,-1300.0,0.0003215,7]
[383697853,1757093458109,-1000.0,0.000322,2]
[383697855,1757093458119,-1000.0,0.000322,2]
[383697857,1757093458129,-1594.0,0.000322,2]
[383697860,1757093458139,-1300.0,0.00032202,7]
[383697861,1757093458148,-1437.429036,0.00032212,120]
[383697863,1757093458158,-1300.0,0.00032218,7]
[383697865,1757093458168,-1000.0,0.00032218,7]
[383697867,1757093458178,-900.0,0.00032218,7]
[383697869,1757093458186,-8306.1454635,0.0003222,2]
[383697871,1757093458195,-1000.0,0.00032222,7]
[383697873,1757093458204,-1300.0,0.00032226,7]
[383697875,1757093458213,-150.99,0.00032232,30]
[383697877,1757093458222,-999.99,0.00032232,2]
[383697879,1757093458231,-299.99,0.00032232,30]
[383697881,1757093458240,-9999.99,0.00032232,2]
[383697883,1757093458249,-150.99,0.00032232,2]
[383697885,1757093458258,-3499.71,0.00032232,2]
[383697887,1757093458268,-40496.64,0.00032232,10]
[383697889,1757093458278,-334.5472959,0.00032257,2]
[383697892,1757093458288,-267.46074303,0.00032257,2]
[383697894,1757093458297,-160.0,0.00032257,2]
[383697895,1757093458307,-500.0,0.0003228,7]
[383697898,1757093458317,-1849.0491763,0.000323,2]
[383697900,1757093458326,-500.0,0.00032306,7]
[383697901,1757093458336,-23173.8954503,0.00032315,2]
[383697903,1757093458345,-167.72,0.00032322,30]
[383697905,1757093458355,-1000.0,0.00032326,7]
[383697908,1757093458364,-550.0,0.00032364,5]
[383697910,1757093458373,-151.0,0.00032372,7]
[383697912,1757093458384,-151.0,0.00032372,7]
[383697913,1757093458394,-1980.0,0.00032372,2]
[383697915,1757093458403,-772.36861921,0.00032372,2]
[383697918,1757093458414,-4711.0,0.0003239,5]
[383697920,1757093458424,-1000.0,0.00032411,7]
[383697922,1757093458434,-500.0,0.00032411,7]
[383697924,1757093458444,-516.0,0.00032423,7]
[383697926,1757093458454,-1000.0,0.00032445,7]
[383697928,1757093458463,-180.18517051,0.00032454,7]
[383697930,1757093458473,-1000.0,0.00032463,7]
[383697932,1757093458483,-1000.0,0.00032481,7]
[383697934,1757093458492,-275.61570194,0.00032487,2]
[383697936,1757093458502,-151.0,0.00032487,7]
[383697938,1757093458511,-256.274155,0.00032487,7]
[383697940,1757093458520,-151.0,0.00032487,7]
[383697942,1757093458529,-151.0,0.00032487,7]
[383697944,1757093458539,-157.220929,0.00032487,7]
[383697946,1757093458549,-151.0,0.00032497,7]
[383697948,1757093458558,-153.317173,0.00032497,7]
[383697950,1757093458568,-151.0,0.00032497,7]
[383697952,1757093458577,-151.0,0.00032497,7]
[383697954,1757093458587,-151.0,0.00032497,7]
[383697956,1757093458596,-151.0,0.00032497,7]
[383697958,1757093458606,-151.0,0.00032497,7]
[383697960,1757093458615,-151.0,0.00032497,7]
[383697961,1757093458624,-500.0,0.00032497,7]
[383697964,1757093458635,-4200.551,0.00032514,2]
[383697966,1757093458645,-224.958,0.00032514,2]
[383697968,1757093458655,-1258.0,0.00032514,2]
[383697970,1757093458665,-215.12875862,0.00032532,2]
[383697972,1757093458674,-7770.57536155,0.00032534,30]
[383697974,1757093458684,-1300.0,0.00032535,7]
[383697976,1757093458694,-500.0,0.00032555,7]
[383697978,1757093458703,-151.0,0.0003259,7]
[383697980,1757093458712,-151.0,0.0003259,7]
[383697982,1757093458722,-3253.59,0.000326,7]
[383697984,1757093458731,-500.0,0.0003261,7]
[383697986,1757093458740,-1000.0,0.00032623,7]
[383697988,1757093458750,-500.0,0.00032627,7]
[383697990,1757093458760,-500.0,0.0003263,7]
[383697992,1757093458771,-500.0,0.00032646,7]
[383697994,1757093458781,-1000.0,0.00032647,7]
[383697996,1757093458791,-500.0,0.00032651,7]
[383697998,1757093458800,-1000.0,0.00032657,7]
[383698000,1757093458810,-500.0,0.00032668,7]
[383698002,1757093458820,-1980.0,0.00032696,2]
[383698004,1757093458829,-152.03825007,0.000327,5]
[383698006,1757093458839,-500.0,0.000327,7]
[383698008,1757093458849,-35570.0,0.000327,7]
[383698010,1757093458859,-5000.0,0.00032722,2]
[383698012,1757093458868,-1000.0,0.00032729,7]
[383698013,1757093458879,-1300.0,0.00032758,7]
[383698014,1757093458889,-900.0,0.00032758,7]
[383698015,1757093458901,-500.0,0.00032763,7]
[383698016,1757093458911,-1000.0,0.00032782,7]
[383698017,1757093458921,-4000.0,0.00032792,4]
[383698018,1757093458930,-1000.0,0.00032801,7]
[383698020,1757093458940,-151.0,0.00032812,7]
[383698022,1757093458950,-228.029573,0.00032812,7]
[383698024,1757093458959,-151.0,0.00032812,7]
[383698026,1757093458971,-151.0,0.00032812,7]
[383698027,1757093458980,-151.0,0.00032812,7]
[383698029,1757093458989,-1000.0,0.00032816,7]
[383698031,1757093458999,-1000.0,0.00032831,7]
[383698033,1757093459009,-500.0,0.00032834,7]
[383698035,1757093459018,-900.0,0.0003285,7]
[383698037,1757093459028,-200.0,0.0003286,2]
[383698039,1757093459049,-1000.0,0.00032874,7]
[383698041,1757093459059,-276.72067077,0.00032877,2]
[383698043,1757093459072,-337.36,0.00032877,2]
[383698045,1757093459082,-151.0,0.00032877,7]
[383698048,1757093459092,-500.0,0.00032877,7]
[383698050,1757093459102,-503.00264665,0.00032877,7]
[383698051,1757093459112,-500.0,0.00032877,7]
[383698054,1757093459123,-500.0,0.00032877,7]
[383698056,1757093459135,-500.0,0.00032877,7]
[383698058,1757093459145,-500.0,0.00032877,7]
[383698060,1757093459155,-500.0,0.00032877,7]
[383698062,1757093459168,-900.0,0.00032881,7]
[383698064,1757093459179,-5340.4364691,0.00032887,2]
[383698066,1757093459190,-1000.0,0.00032908,7]
[383698068,1757093459200,-650.0,0.00032912,5]
[383698070,1757093459212,-1300.0,0.00032916,7]
[383698072,1757093459223,-1000.0,0.00032921,7]
[383698074,1757093459235,-1000.0,0.00032931,7]
[383698076,1757093459245,-150.0,0.00032947,120]
[383698078,1757093459255,-1000.0,0.00032955,7]
[383698080,1757093459265,-1000.0,0.00032961,7]
[383698082,1757093459274,-424.0,0.00032995,2]
[383698084,1757093459285,-151.0,0.00032999,7]
[383698086,1757093459294,-151.0,0.00032999,7]
[383698088,1757093459305,-151.0,0.00032999,7]
[383698090,1757093459315,-221.289709,0.00032999,7]
[383698092,1757093459325,-6500.000009,0.00033,2]
[383698094,1757093459335,-168.0,0.00033,14]
[383698095,1757093459345,-325.16,0.00033017,2]
[383698098,1757093459355,-151.0,0.00033019,7]
[383698100,1757093459364,-1980.0,0.00033019,2]
[383698102,1757093459374,-1853.3515674,0.0003303,2]
[383698103,1757093459387,-1000.0,0.00033032,7]
[383698106,1757093459397,-1000.0,0.00033062,7]
[383698108,1757093459407,-500.0,0.00033063,7]
[383698110,1757093459417,-165.58786832,0.00033066,15]
[383698112,1757093459427,-272.02728421,0.00033084,2]
[383698114,1757093459436,-150.0,0.00033084,120]
[383698116,1757093459446,-412.5786388,0.00033112,2]
[383698117,1757093459456,-5170.7950031,0.00033127,2]
[383698120,1757093459466,-1000.0,0.00033128,7]
[383698122,1757093459477,-663.64447555,0.00033129,7]
[383698124,1757093459486,-1506.7025196,0.00033134,19]
[383698126,1757093459496,-1000.0,0.00033165,7]
[383698128,1757093459506,-1300.0,0.00033167,7]
[383698130,1757093459516,-167.72,0.00033212,30]
[383698132,1757093459526,-788.21925849,0.00033215,2]
[383698134,1757093459536,-150.0,0.00033221,120]
[383698136,1757093459546,-500.0,0.00033233,7]
[383698138,1757093459555,-1000.0,0.00033268,7]
[383698140,1757093459566,-1300.0,0.00033277,7]
[383698142,1757093459576,-500.0,0.00033277,7]
[383698144,1757093459587,-687.06947383,0.00033288,7]
[383698146,1757093459596,-900.0,0.00033324,7]
[383698148,1757093459607,-1980.0,0.00033343,2]
[383698150,1757093459617,-150.0,0.00033358,120]
[383698152,1757093459626,-500.0,0.0003339,7]
[383698154,1757093459638,-3253.59,0.000334,14]
[383698157,1757093459649,-1000.0,0.00033411,7]
[383698158,1757093459659,-500.0,0.00033424,7]
[383698160,1757093459669,-423.0,0.00033435,2]
[383698163,1757093459679,-1000.0,0.00033438,7]
[383698164,1757093459689,-1000.0,0.00033451,7]
[383698166,1757093459698,-900.0,0.00033453,7]
[383698169,1757093459709,-612.38338442,0.0003346,5]
[383698170,1757093459718,-1000.0,0.00033476,7]
[383698173,1757093459728,-150.0,0.00033495,120]
[383698175,1757093459738,-13159.05,0.000335,2]
[383698176,1757093459748,-35570.0,0.000335,14]
[383698178,1757093459757,-240.29775016,0.00033501,2]
[383698180,1757093459766,-10000.0,0.00033518,120]
[383698182,1757093459776,-1000.0,0.0003352,7]
[383698184,1757093459787,-500.0,0.0003355,7]
[383698186,1757093459799,-1000.0,0.00033566,7]
[383698189,1757093459809,-4064.7520772,0.00033579,2]
[383698191,1757093459818,-424.0,0.00033606,7]
[383698193,1757093459828,-346.92554585,0.00033626,2]
[383698195,1757093459839,-277.35679052,0.00033626,2]
[383698197,1757093459849,-160.0,0.00033626,2]
[383698199,1757093459858,-695.39793187,0.00033627,2]
[383698201,1757093459869,-291.00437739,0.00033627,2]
[383698203,1757093459879,-560.44338692,0.0003363,7]
[383698205,1757093459890,-150.0,0.00033632,120]
[383698207,1757093459901,-506.42019514,0.00033641,7]
[383698209,1757093459912,-402.47,0.00033649,30]
[383698211,1757093459922,-900.0,0.00033669,7]
[383698213,1757093459933,-500.0,0.00033671,7]
[383698215,1757093459943,-1000.0,0.00033672,7]
[383698217,1757093459952,-500.0,0.00033672,7]
[383698219,1757093459962,-1000.0,0.00033689,7]
[383698221,1757093459976,-500.0,0.00033692,7]
[383698223,1757093459986,-216.51346479,0.00033694,7]
[383698225,1757093459995,-381.2,0.00033698,7]
[383698227,1757093460007,-1300.0,0.00033705,7]
[383698229,1757093460017,-1000.0,0.00033718,7]
[383698231,1757093460027,-423.0,0.0003372,7]
[383698233,1757093460038,-1000.0,0.00033723,7]
[383698236,1757093460051,-1000.0,0.0003373,7]
[383698237,1757093460062,-5340.4364691,0.0003375,2]
[383698238,1757093460073,-150.0,0.00033769,120]
[383698239,1757093460083,-930.45,0.000338,30]
[383698240,1757093460093,-1000.0,0.00033802,7]
[383698241,1757093460104,-1000.0,0.00033802,7]
[383698242,1757093460114,-500.0,0.00033804,7]
[383698244,1757093460123,-151.0,0.00033833,7]
[383698246,1757093460136,-900.0,0.00033861,7]
[383698247,1757093460146,-1300.0,0.00033875,7]
[383698250,1757093460155,-500.0,0.00033883,7]
[383698251,1757093460166,-36847.0,0.0003389,2]
[383698253,1757093460176,-1700.0,0.000339,12]
[383698254,1757093460187,-150.0,0.00033906,120]
[383698256,1757093460197,-700.0,0.00033918,120]
[383698259,1757093460208,-700.0,0.00033918,120]
[383698261,1757093460217,-700.0,0.00033918,120]
[383698263,1757093460227,-738.33371292,0.00033918,120]
[383698264,1757093460236,-1000.0,0.00033936,7]
[383698266,1757093460245,-423.0,0.00033955,2]
[383698268,1757093460255,-500.0,0.00033958,7]
[383698270,1757093460264,-500.0,0.0003396,7]
[383698272,1757093460275,-982.75285804,0.00033963,2]
[383698274,1757093460284,-500.0,0.00033978,7]
[383698276,1757093460294,-13221.61230327,0.00034,4]
[383698279,1757093460305,-697.09926906,0.00034,5]
[383698280,1757093460314,-264.43224607,0.00034,4]
[383698282,1757093460324,-3010.69135387,0.00034,120]
[383698284,1757093460333,-252.0,0.00034,2]
[383698287,1757093460343,-1000.0,0.00034022,7]
[383698289,1757093460353,-150.0,0.00034043,120]
[383698291,1757093460362,-13159.05,0.000341,2]
[383698292,1757093460371,-167.72,0.00034103,30]
[383698310,1757093460383,-423.0,0.00034103,2]
[383698312,1757093460547,-500.0,0.00034106,7]
[383698314,1757093460556,-500.0,0.00034133,7]
[383698317,1757093460567,-500.0,0.00034145,7]
[383698319,1757093460577,-1506.7025196,0.00034164,22]
[383698321,1757093460588,-12000.0,0.00034165,120]